[Event "Live Chess"]
[Site "Chess.com"]
[Date "2024.06.01"]
[Round "-"]
[White "JanMur7"]
[Black "Mangoalo"]
[Result "1-0"]
[WhiteElo "2290"]
[BlackElo "1067"]
[TimeControl "300"]
[EndTime "14:30:15 PDT"]
[Termination "JanMur7 won by resignation"]

1. c4 {[%clk 0:04:58.7]} 1... e5 {[%clk 0:04:56.5]} 2. Nc3 {[%clk 0:04:58.1]}
2... Nf6 {[%clk 0:04:55.8]} 3. Nf3 {[%clk 0:04:53.5]} 3... Bb4 {[%clk
0:04:55.1]} 4. Nxe5 {[%clk 0:04:52.2]} 4... Qe7 {[%clk 0:04:52.5]} 5. Nf3 {[%clk
0:04:51.1]} 5... O-O {[%clk 0:04:50.7]} 6. g3 {[%clk 0:04:49.9]} 6... Re8 {[%clk
0:04:49.8]} 7. Bg2 {[%clk 0:04:49.3]} 7... d6 {[%clk 0:04:46.6]} 8. O-O {[%clk
0:04:46]} 8... Nc6 {[%clk 0:04:45.6]} 9. Re1 {[%clk 0:04:41.7]} 9... Bg4 {[%clk
0:04:44.9]} 10. d4 {[%clk 0:04:39]} 10... Rad8 {[%clk 0:04:41.7]} 11. d5 {[%clk
0:04:37.1]} 11... Ne5 {[%clk 0:04:39.2]} 12. Nxe5 {[%clk 0:04:36]} 12... dxe5
{[%clk 0:04:39.1]} 13. f3 {[%clk 0:04:33.5]} 13... Bd7 {[%clk 0:04:36.4]} 14. e4
{[%clk 0:04:32.7]} 14... c6 {[%clk 0:04:33.7]} 15. Be3 {[%clk 0:04:28.8]} 15...
b6 {[%clk 0:04:30.6]} 16. a3 {[%clk 0:04:26.7]} 16... Bxc3 {[%clk 0:04:29.4]}
17. bxc3 {[%clk 0:04:25.3]} 17... c5 {[%clk 0:04:28.7]} 18. a4 {[%clk
0:04:21.7]} 18... a5 {[%clk 0:04:25.7]} 19. Rb1 {[%clk 0:04:20]} 19... Qd6
{[%clk 0:04:19.6]} 20. Qb3 {[%clk 0:04:16.3]} 20... Rb8 {[%clk 0:04:17.3]} 21.
Re2 {[%clk 0:04:13.5]} 21... Rb7 {[%clk 0:04:14.1]} 22. Reb2 {[%clk 0:04:10.6]}
22... Reb8 {[%clk 0:04:13.6]} 23. Qa3 {[%clk 0:04:09.1]} 23... Rc7 {[%clk
0:04:07.4]} 24. h4 {[%clk 0:04:03]} 24... h5 {[%clk 0:04:02.5]} 25. Rb3 {[%clk
0:03:58.7]} 25... Be8 {[%clk 0:03:56]} 26. R1b2 {[%clk 0:03:36.6]} 26... Nd7
{[%clk 0:03:52.9]} 27. Bh3 {[%clk 0:03:17.8]} 27... f6 {[%clk 0:03:45.9]} 28.
Be6+ {[%clk 0:03:15]} 28... Bf7 {[%clk 0:03:39.5]} 29. Bxf7+ {[%clk 0:03:13.5]}
29... Kxf7 {[%clk 0:03:39.4]} 30. Rb5 {[%clk 0:03:09.4]} 30... Rcb7 {[%clk
0:03:32.5]} 31. Qa1 {[%clk 0:03:00.1]} 31... Rg8 {[%clk 0:03:02.9]} 32. Rxa5
{[%clk 0:02:49.4]} 32... bxa5 {[%clk 0:02:44.8]} 33. Rxb7 {[%clk 0:02:46.1]}
33... Rd8 {[%clk 0:02:43.6]} 34. Qb2 {[%clk 0:02:43.7]} 34... Qa6 {[%clk
0:02:41.4]} 35. Qb5 {[%clk 0:02:41.6]} 35... Qxb5 {[%clk 0:02:27.8]} 36. cxb5
{[%clk 0:02:41.5]} 36... Ke7 {[%clk 0:02:24.3]} 37. Bxc5+ {[%clk 0:02:39.1]}
37... Ke8 {[%clk 0:02:20]} 38. Bb6 {[%clk 0:02:37.6]} 38... Nxb6 {[%clk
0:02:17.4]} 39. Rxb6 {[%clk 0:02:37.5]} 39... Ke7 {[%clk 0:02:13.6]} 40. Rb7+
{[%clk 0:02:36.1]} 40... Rd7 {[%clk 0:02:12.3]} 41. Rxd7+ {[%clk 0:02:34.8]}
41... Kxd7 {[%clk 0:02:12.2]} 42. c4 {[%clk 0:02:34]} 1-0

[Event "Live Chess"]
[Site "Chess.com"]
[Date "2024.06.01"]
[Round "-"]
[White "Plato_77"]
[Black "CarmelJane"]
[Result "0-1"]
[WhiteElo "1361"]
[BlackElo "2087"]
[TimeControl "300"]
[EndTime "14:30:25 PDT"]
[Termination "CarmelJane won on time"]

1. d4 {[%clk 0:04:58.1]} 1... g6 {[%clk 0:04:59.9]} 2. Nf3 {[%clk 0:04:51.4]}
2... Bg7 {[%clk 0:04:59.8]} 3. Bf4 {[%clk 0:04:47.5]} 3... d6 {[%clk 0:04:56.9]}
4. e3 {[%clk 0:04:44.4]} 4... a6 {[%clk 0:04:52.3]} 5. c3 {[%clk 0:04:42.3]}
5... b6 {[%clk 0:04:49.6]} 6. Nbd2 {[%clk 0:04:35.9]} 6... Bb7 {[%clk
0:04:49.1]} 7. Be2 {[%clk 0:04:32.2]} 7... Nd7 {[%clk 0:04:46.6]} 8. O-O {[%clk
0:04:30.3]} 8... e6 {[%clk 0:04:46.2]} 9. h3 {[%clk 0:04:28.3]} 9... Ne7 {[%clk
0:04:42.2]} 10. Qc2 {[%clk 0:04:09.3]} 10... h6 {[%clk 0:04:37]} 11. Bh2 {[%clk
0:03:43.6]} 11... O-O {[%clk 0:04:33.8]} 12. e4 {[%clk 0:03:38.3]} 12... Rc8
{[%clk 0:04:28.7]} 13. Rad1 {[%clk 0:03:33.1]} 13... Nf6 {[%clk 0:04:19.2]} 14.
Bd3 {[%clk 0:03:17.2]} 14... d5 {[%clk 0:04:11.3]} 15. e5 {[%clk 0:03:13.2]}
15... Nd7 {[%clk 0:04:09]} 16. Rfe1 {[%clk 0:03:08.5]} 16... c5 {[%clk
0:04:07.6]} 17. Qb1 {[%clk 0:02:54.7]} 17... cxd4 {[%clk 0:03:55.8]} 18. cxd4
{[%clk 0:02:54.6]} 18... b5 {[%clk 0:03:55.1]} 19. Rc1 {[%clk 0:02:52.2]} 19...
Nb6 {[%clk 0:03:52.3]} 20. Rxc8 {[%clk 0:02:48.9]} 20... Qxc8 {[%clk 0:03:52.2]}
21. Rc1 {[%clk 0:02:47.6]} 21... Qd7 {[%clk 0:03:49.4]} 22. Nb3 {[%clk
0:02:41.2]} 22... Na4 {[%clk 0:03:31.5]} 23. Nc5 {[%clk 0:02:17.6]} 23... Nxc5
{[%clk 0:03:27.8]} 24. Rxc5 {[%clk 0:02:17.5]} 24... Rc8 {[%clk 0:03:26.8]} 25.
Qc1 {[%clk 0:02:14.4]} 25... Rxc5 {[%clk 0:03:25.3]} 26. Qxc5 {[%clk 0:02:14.3]}
26... Bf8 {[%clk 0:03:12.2]} 27. Qc2 {[%clk 0:01:59.8]} 27... Qc6 {[%clk
0:03:07.4]} 28. Qb1 {[%clk 0:01:57.7]} 28... b4 {[%clk 0:02:48.6]} 29. Bf4
{[%clk 0:01:18.5]} 29... a5 {[%clk 0:02:46.3]} 30. Bd2 {[%clk 0:01:12.6]} 30...
Ba6 {[%clk 0:02:43.1]} 31. Kh2 {[%clk 0:01:05.4]} 31... Bxd3 {[%clk 0:02:39.6]}
32. Qxd3 {[%clk 0:01:05.3]} 32... Nf5 {[%clk 0:02:38.3]} 33. g4 {[%clk
0:01:01.7]} 33... Ne7 {[%clk 0:02:35.8]} 34. a3 {[%clk 0:00:53]} 34... bxa3
{[%clk 0:02:28.6]} 35. bxa3 {[%clk 0:00:52.9]} 35... Qc4 {[%clk 0:02:26.5]} 36.
Qxc4 {[%clk 0:00:44.9]} 36... dxc4 {[%clk 0:02:24.5]} 37. Ne1 {[%clk 0:00:40.4]}
37... Nc6 {[%clk 0:02:23.3]} 38. Bc3 {[%clk 0:00:36.4]} 38... Bxa3 {[%clk
0:02:21.9]} 39. Nc2 {[%clk 0:00:34.1]} 39... Bb4 {[%clk 0:02:20.2]} 40. Nxb4
{[%clk 0:00:31.1]} 40... axb4 {[%clk 0:02:20.1]} 41. Bd2 {[%clk 0:00:23.5]}
41... c3 {[%clk 0:02:19.3]} 42. Bxh6 {[%clk 0:00:21.5]} 42... Nxd4 {[%clk
0:02:18.4]} 43. Be3 {[%clk 0:00:15.8]} 43... Nf3+ {[%clk 0:02:17.6]} 44. Kg3
{[%clk 0:00:14.3]} 44... Nxe5 {[%clk 0:02:16.8]} 45. Bd4 {[%clk 0:00:08]} 45...
Nd3 {[%clk 0:02:13.7]} 0-1

[Event "Live Chess"]
[Site "Chess.com"]
[Date "2024.06.01"]
[Round "-"]
[White "wadsy27"]
[Black "StoreySniper"]
[Result "1-0"]
[WhiteElo "2545"]
[BlackElo "2529"]
[TimeControl "300"]
[EndTime "14:30:29 PDT"]
[Termination "wadsy27 won by resignation"]

1. d4 {[%clk 0:04:59.6]} 1... g6 {[%clk 0:04:58.7]} 2. c4 {[%clk 0:04:59.1]}
2... Bg7 {[%clk 0:04:57.9]} 3. Nf3 {[%clk 0:04:58.8]} 3... c5 {[%clk 0:04:57.3]}
4. d5 {[%clk 0:04:56.4]} 4... d6 {[%clk 0:04:55.9]} 5. Nc3 {[%clk 0:04:54.2]}
5... Bg4 {[%clk 0:04:51.6]} 6. e4 {[%clk 0:04:51.7]} 6... Bxf3 {[%clk
0:04:50.3]} 7. Qxf3 {[%clk 0:04:50.8]} 7... Nd7 {[%clk 0:04:49.9]} 8. Qd1 {[%clk
0:04:43.7]} 8... Ngf6 {[%clk 0:04:47.4]} 9. Be2 {[%clk 0:04:42.4]} 9... O-O
{[%clk 0:04:45.3]} 10. O-O {[%clk 0:04:41.7]} 10... Ne8 {[%clk 0:04:44.4]} 11.
Be3 {[%clk 0:04:34.5]} 11... Nc7 {[%clk 0:04:43.4]} 12. f4 {[%clk 0:04:22.5]}
12... a6 {[%clk 0:04:41.6]} 13. a4 {[%clk 0:04:19.5]} 13... Rb8 {[%clk
0:04:31.4]} 14. Qd2 {[%clk 0:04:18.9]} 14... Re8 {[%clk 0:04:14.8]} 15. Rf3
{[%clk 0:04:17.4]} 15... Nf8 {[%clk 0:04:12.1]} 16. f5 {[%clk 0:04:15.6]} 16...
Nd7 {[%clk 0:04:09.4]} 17. Rh3 {[%clk 0:04:13.7]} 17... b5 {[%clk 0:03:53.3]}
18. axb5 {[%clk 0:04:05.4]} 18... axb5 {[%clk 0:03:52.3]} 19. cxb5 {[%clk
0:04:04.3]} 19... Nf6 {[%clk 0:03:36.3]} 20. Kh1 {[%clk 0:04:01]} 20... Qd7
{[%clk 0:03:05.6]} 21. Rf1 {[%clk 0:03:56]} 21... Nxb5 {[%clk 0:02:53.8]} 22.
Nxb5 {[%clk 0:03:46.2]} 22... Rxb5 {[%clk 0:02:52.8]} 23. Bxb5 {[%clk
0:03:45.4]} 23... Qxb5 {[%clk 0:02:51.5]} 24. Qe1 {[%clk 0:03:37]} 24... Nxe4
{[%clk 0:02:42.1]} 25. fxg6 {[%clk 0:03:36.3]} 25... hxg6 {[%clk 0:02:39.4]} 26.
Rhf3 {[%clk 0:03:35.3]} 26... Nf6 {[%clk 0:02:37]} 27. Bg5 {[%clk 0:03:34.4]}
27... Qd7 {[%clk 0:02:02.3]} 28. b4 {[%clk 0:03:16.3]} 28... cxb4 {[%clk
0:01:56.5]} 29. Qxb4 {[%clk 0:03:16.2]} 29... Nxd5 {[%clk 0:01:52.5]} 30. Qh4
{[%clk 0:03:07.5]} 30... f5 {[%clk 0:01:43]} 31. Rh3 {[%clk 0:02:59.9]} 31... e6
{[%clk 0:01:38.3]} 32. Qh7+ {[%clk 0:02:54.9]} 32... Kf7 {[%clk 0:01:37.6]} 33.
Bh6 {[%clk 0:02:53.6]} 33... Rg8 {[%clk 0:01:36.1]} 34. Rg3 {[%clk 0:02:47.2]}
34... Ne7 {[%clk 0:01:26.4]} 35. h4 {[%clk 0:02:42.6]} 35... Qa4 {[%clk
0:01:05.3]} 36. Bxg7 {[%clk 0:02:10.6]} 36... Rxg7 {[%clk 0:01:03.7]} 37. Qh6
{[%clk 0:02:10]} 37... Ng8 {[%clk 0:00:48.4]} 38. Qg5 {[%clk 0:02:09.1]} 38...
Nf6 {[%clk 0:00:45.7]} 39. Rb1 {[%clk 0:02:04.1]} 39... Kg8 {[%clk 0:00:18.8]}
40. Qxf6 {[%clk 0:01:59.4]} 40... Kh7 {[%clk 0:00:17.8]} 41. Rxg6 {[%clk
0:01:50.7]} 41... Rxg6 {[%clk 0:00:06.8]} 42. Rb7+ {[%clk 0:01:49.6]} 1-0

[Event "Live Chess"]
[Site "Chess.com"]
[Date "2024.06.01"]
[Round "-"]
[White "Dhaydon19"]
[Black "Zhevzh1k7"]
[Result "1-0"]
[WhiteElo "2678"]
[BlackElo "1105"]
[TimeControl "300"]
[EndTime "14:30:34 PDT"]
[Termination "Dhaydon19 won by resignation"]

1. d4 {[%clk 0:04:57.7]} 1... Nf6 {[%clk 0:04:58.5]} 2. Nf3 {[%clk 0:04:56.3]}
2... e6 {[%clk 0:04:55]} 3. g3 {[%clk 0:04:55.5]} 3... d5 {[%clk 0:04:53.1]} 4.
Bg2 {[%clk 0:04:55.2]} 4... c6 {[%clk 0:04:51.4]} 5. c3 {[%clk 0:04:54.7]} 5...
Bd7 {[%clk 0:04:50.5]} 6. O-O {[%clk 0:04:54.4]} 6... Bd6 {[%clk 0:04:47.9]} 7.
Re1 {[%clk 0:04:54.2]} 7... O-O {[%clk 0:04:46.1]} 8. Qc2 {[%clk 0:04:53.9]}
8... Na6 {[%clk 0:04:45]} 9. Nbd2 {[%clk 0:04:53.6]} 9... Qc7 {[%clk 0:04:42.8]}
10. e4 {[%clk 0:04:53.2]} 10... dxe4 {[%clk 0:04:41.6]} 11. Nxe4 {[%clk
0:04:52.9]} 11... Nxe4 {[%clk 0:04:40.2]} 12. Qxe4 {[%clk 0:04:52.6]} 12... f5
{[%clk 0:04:36.7]} 13. Qc2 {[%clk 0:04:51.1]} 13... c5 {[%clk 0:04:34.9]} 14.
dxc5 {[%clk 0:04:49.4]} 14... Nxc5 {[%clk 0:04:32.3]} 15. Be3 {[%clk 0:04:47.6]}
15... Ne4 {[%clk 0:04:26.3]} 16. Rad1 {[%clk 0:04:45.1]} 16... Bc6 {[%clk
0:04:17.9]} 17. Nd4 {[%clk 0:04:43.6]} 17... Nc5 {[%clk 0:04:06.4]} 18. Bxc6
{[%clk 0:04:38.9]} 18... bxc6 {[%clk 0:04:02.3]} 19. b4 {[%clk 0:04:38.5]} 19...
Nb7 {[%clk 0:03:51.3]} 20. Nxe6 {[%clk 0:04:36.5]} 20... Qe7 {[%clk 0:03:44.6]}
21. Nxf8 {[%clk 0:04:34.2]} 21... Rxf8 {[%clk 0:03:43]} 22. Bxa7 {[%clk
0:04:32.3]} 22... Qf6 {[%clk 0:03:38.6]} 23. Bd4 {[%clk 0:04:30.5]} 23... Qf7
{[%clk 0:03:36.2]} 24. Qb3 {[%clk 0:04:29.2]} 24... Qxb3 {[%clk 0:03:33.2]} 25.
axb3 {[%clk 0:04:28.1]} 25... f4 {[%clk 0:03:30.4]} 26. Re6 {[%clk 0:04:24.7]}
26... c5 {[%clk 0:03:26.3]} 27. Rxd6 {[%clk 0:04:20.2]} 27... cxd4 {[%clk
0:03:25]} 28. R6xd4 {[%clk 0:04:18.7]} 28... fxg3 {[%clk 0:03:24.3]} 29. hxg3
{[%clk 0:04:17.9]} 29... h6 {[%clk 0:03:14.8]} 30. Rd7 {[%clk 0:04:15.3]} 30...
Rf7 {[%clk 0:03:07.6]} 31. Rxf7 {[%clk 0:04:13.7]} 31... Kxf7 {[%clk 0:03:06.7]}
32. Rd7+ {[%clk 0:04:13.3]} 32... Kf6 {[%clk 0:03:06.2]} 33. Rxb7 {[%clk
0:04:13]} 1-0

[Event "Live Chess"]
[Site "Chess.com"]
[Date "2024.06.01"]
[Round "-"]
[White "crais6"]
[Black "IanCalvert2"]
[Result "0-1"]
[WhiteElo "1618"]
[BlackElo "1642"]
[TimeControl "300"]
[EndTime "14:30:50 PDT"]
[Termination "IanCalvert2 won by checkmate"]

1. d4 {[%clk 0:04:56.8]} 1... d5 {[%clk 0:04:58.6]} 2. Nc3 {[%clk 0:04:53.4]}
2... Nf6 {[%clk 0:04:56.4]} 3. Bf4 {[%clk 0:04:52.4]} 3... c5 {[%clk 0:04:54.6]}
4. e3 {[%clk 0:04:51]} 4... cxd4 {[%clk 0:04:49.5]} 5. exd4 {[%clk 0:04:47.1]}
5... a6 {[%clk 0:04:47]} 6. Bd3 {[%clk 0:04:41.4]} 6... Nc6 {[%clk 0:04:44.1]}
7. Nf3 {[%clk 0:04:38]} 7... Bg4 {[%clk 0:04:41.5]} 8. Be2 {[%clk 0:04:35.8]}
8... e6 {[%clk 0:04:39.4]} 9. O-O {[%clk 0:04:34]} 9... Bd6 {[%clk 0:04:37.7]}
10. Bg3 {[%clk 0:04:28.9]} 10... Bxg3 {[%clk 0:04:27.2]} 11. hxg3 {[%clk
0:04:20.3]} 11... Qd6 {[%clk 0:04:22]} 12. Re1 {[%clk 0:04:05.1]} 12... h5
{[%clk 0:03:53.8]} 13. Na4 {[%clk 0:04:01]} 13... Ne4 {[%clk 0:03:18.3]} 14. Nc5
{[%clk 0:03:48.7]} 14... Nxc5 {[%clk 0:03:10.8]} 15. dxc5 {[%clk 0:03:46.3]}
15... Qxc5 {[%clk 0:03:09.3]} 16. c4 {[%clk 0:03:40.8]} 16... O-O {[%clk
0:02:56.7]} 17. cxd5 {[%clk 0:03:38]} 17... Qxd5 {[%clk 0:02:52.5]} 18. Qxd5
{[%clk 0:03:35.5]} 18... exd5 {[%clk 0:02:48.7]} 19. a3 {[%clk 0:03:34.6]} 19...
g6 {[%clk 0:02:44.1]} 20. Rad1 {[%clk 0:03:31.9]} 20... Rad8 {[%clk 0:02:36.9]}
21. Nd4 {[%clk 0:03:25.5]} 21... Bxe2 {[%clk 0:02:22.6]} 22. Rxe2 {[%clk
0:03:23.2]} 22... Nxd4 {[%clk 0:02:20.3]} 23. Rxd4 {[%clk 0:03:20.5]} 23... Rfe8
{[%clk 0:02:18.5]} 24. Red2 {[%clk 0:03:18.3]} 24... Re6 {[%clk 0:02:02.3]} 25.
Rxd5 {[%clk 0:03:14.7]} 25... Rxd5 {[%clk 0:01:59.3]} 26. Rxd5 {[%clk
0:03:11.9]} 26... Re1+ {[%clk 0:01:53.6]} 27. Kh2 {[%clk 0:03:09]} 27... Re2
{[%clk 0:01:52.5]} 28. Rd8+ {[%clk 0:02:54.3]} 28... Kg7 {[%clk 0:01:50.6]} 29.
Rd7 {[%clk 0:02:53.1]} 29... Rxb2 {[%clk 0:01:47.6]} 30. Kg1 {[%clk 0:02:49.3]}
30... Rb3 {[%clk 0:01:44.1]} 31. Kf1 {[%clk 0:02:47]} 31... Rxa3 {[%clk
0:01:41.8]} 32. Rxb7 {[%clk 0:02:44.8]} 32... Ra2 {[%clk 0:01:39.7]} 33. Ke1
{[%clk 0:02:42.5]} 33... a5 {[%clk 0:01:37.9]} 34. Ra7 {[%clk 0:02:40.6]} 34...
a4 {[%clk 0:01:35.9]} 35. Kd1 {[%clk 0:02:17.7]} 35... Rxf2 {[%clk 0:01:31.8]}
36. Rxa4 {[%clk 0:02:15.2]} 36... Rxg2 {[%clk 0:01:30.1]} 37. Ra3 {[%clk
0:02:12.8]} 37... Kh6 {[%clk 0:01:25.4]} 38. Ke1 {[%clk 0:02:10.3]} 38... Kg5
{[%clk 0:01:18.1]} 39. Kf1 {[%clk 0:02:06.1]} 39... Rb2 {[%clk 0:01:15.3]} 40.
Ra7 {[%clk 0:02:00.1]} 40... f5 {[%clk 0:01:08.9]} 41. Ra6 {[%clk 0:01:58.5]}
41... Rb4 {[%clk 0:00:48.9]} 42. Kf2 {[%clk 0:01:51.5]} 42... h4 {[%clk
0:00:46]} 43. gxh4+ {[%clk 0:01:47.4]} 43... Rxh4 {[%clk 0:00:44.4]} 44. Kg3
{[%clk 0:01:45.2]} 44... Rb4 {[%clk 0:00:41.3]} 45. Ra5 {[%clk 0:01:40]} 45...
Rb3+ {[%clk 0:00:39.9]} 46. Kf2 {[%clk 0:01:37.2]} 46... Kg4 {[%clk 0:00:36.4]}
47. Kg2 {[%clk 0:01:35.5]} 47... Rb2+ {[%clk 0:00:33.4]} 48. Kf1 {[%clk
0:01:33.9]} 48... g5 {[%clk 0:00:32.2]} 49. Ra4+ {[%clk 0:01:29.2]} 49... f4
{[%clk 0:00:30.9]} 50. Rc4 {[%clk 0:01:27.4]} 50... Kg3 {[%clk 0:00:28.8]} 51.
Rc3+ {[%clk 0:01:24.9]} 51... f3 {[%clk 0:00:27.2]} 52. Ra3 {[%clk 0:01:20.6]}
52... Rb1# {[%clk 0:00:23.3]} 0-1

[Event "Live Chess"]
[Site "Chess.com"]
[Date "2024.06.01"]
[Round "-"]
[White "GwaryTek"]
[Black "WelshTiger"]
[Result "0-1"]
[WhiteElo "1917"]
[BlackElo "2517"]
[TimeControl "300"]
[EndTime "14:30:57 PDT"]
[Termination "WelshTiger won on time"]

1. d4 {[%clk 0:04:58.5]} 1... d5 {[%clk 0:04:55.3]} 2. c4 {[%clk 0:04:58]} 2...
dxc4 {[%clk 0:04:54.3]} 3. e3 {[%clk 0:04:56.5]} 3... a6 {[%clk 0:04:52.3]} 4.
a4 {[%clk 0:04:54.9]} 4... e6 {[%clk 0:04:49.9]} 5. Bxc4 {[%clk 0:04:52.9]} 5...
Nf6 {[%clk 0:04:49.1]} 6. Nf3 {[%clk 0:04:51]} 6... c5 {[%clk 0:04:45.8]} 7. O-O
{[%clk 0:04:48.9]} 7... Nc6 {[%clk 0:04:40.9]} 8. Qe2 {[%clk 0:04:32.1]} 8...
cxd4 {[%clk 0:04:35.7]} 9. Rd1 {[%clk 0:04:30.5]} 9... Be7 {[%clk 0:04:27.3]}
10. Nxd4 {[%clk 0:04:27.3]} 10... Nxd4 {[%clk 0:04:21.5]} 11. Rxd4 {[%clk
0:04:26.2]} 11... Qc7 {[%clk 0:04:20.9]} 12. Nc3 {[%clk 0:04:13.4]} 12... O-O
{[%clk 0:04:18.9]} 13. Bd2 {[%clk 0:03:58.7]} 13... Bd7 {[%clk 0:04:17.9]} 14.
Rc1 {[%clk 0:03:56.7]} 14... Bc6 {[%clk 0:04:14]} 15. Be1 {[%clk 0:03:30.1]}
15... Rfd8 {[%clk 0:04:10.8]} 16. Rcd1 {[%clk 0:03:25.7]} 16... Rxd4 {[%clk
0:04:07.7]} 17. Rxd4 {[%clk 0:03:20.8]} 17... Rd8 {[%clk 0:03:59.3]} 18. Qd1
{[%clk 0:03:12.3]} 18... Rxd4 {[%clk 0:03:49]} 19. Qxd4 {[%clk 0:03:10.2]} 19...
Qd6 {[%clk 0:03:36.1]} 20. Qxd6 {[%clk 0:02:52.8]} 20... Bxd6 {[%clk 0:03:36]}
21. f3 {[%clk 0:02:51.9]} 21... Bc5 {[%clk 0:03:32.5]} 22. Kf2 {[%clk
0:02:47.5]} 22... Kf8 {[%clk 0:03:31.4]} 23. Ke2 {[%clk 0:02:42.9]} 23... Ke7
{[%clk 0:03:25.8]} 24. b3 {[%clk 0:01:51.6]} 24... Nd7 {[%clk 0:03:15.5]} 25.
Bd3 {[%clk 0:01:41]} 25... f5 {[%clk 0:03:06.1]} 26. h3 {[%clk 0:01:36.6]} 26...
g5 {[%clk 0:02:46.3]} 27. g4 {[%clk 0:01:19.4]} 27... Kf6 {[%clk 0:02:41.1]} 28.
gxf5 {[%clk 0:01:14.4]} 28... exf5 {[%clk 0:02:40.5]} 29. Bg3 {[%clk 0:01:09.8]}
29... Ne5 {[%clk 0:02:33.1]} 30. e4 {[%clk 0:00:25.2]} 30... f4 {[%clk
0:02:29.3]} 31. Be1 {[%clk 0:00:21.7]} 31... Bd4 {[%clk 0:02:08.8]} 32. Nd5+
{[%clk 0:00:15.6]} 32... Bxd5 {[%clk 0:02:08.1]} 33. exd5 {[%clk 0:00:15.5]}
33... h6 {[%clk 0:02:01.6]} 34. Be4 {[%clk 0:00:13.5]} 34... Nd7 {[%clk
0:01:51.2]} 35. Ba5 {[%clk 0:00:12.2]} 35... b6 {[%clk 0:01:45.7]} 36. Bb4
{[%clk 0:00:10.6]} 36... Bc5 {[%clk 0:01:39.4]} 37. Bc3+ {[%clk 0:00:09.1]}
37... Kf7 {[%clk 0:01:36.2]} 38. Kd3 {[%clk 0:00:07.4]} 38... Bd6 {[%clk
0:01:33.9]} 39. Bf5 {[%clk 0:00:06.4]} 39... Nc5+ {[%clk 0:01:32.3]} 40. Kc4
{[%clk 0:00:04.8]} 40... Be7 {[%clk 0:01:15.6]} 41. Bd4 {[%clk 0:00:04.3]} 41...
h5 {[%clk 0:01:05.3]} 42. Bxc5 {[%clk 0:00:02]} 42... Bxc5 {[%clk 0:01:04.2]}
43. Be6+ {[%clk 0:00:01.9]} 43... Kf6 {[%clk 0:01:03.2]} 0-1

[Event "Live Chess"]
[Site "Chess.com"]
[Date "2024.06.01"]
[Round "-"]
[White "ShanthamGrarks"]
[Black "Tushinskiy"]
[Result "0-1"]
[WhiteElo "1789"]
[BlackElo "2282"]
[TimeControl "300"]
[EndTime "14:31:01 PDT"]
[Termination "Tushinskiy won by resignation"]

1. d4 {[%clk 0:04:53.3]} 1... d5 {[%clk 0:04:53.2]} 2. Nc3 {[%clk 0:04:53.2]}
2... c6 {[%clk 0:04:53.1]} 3. Nf3 {[%clk 0:04:50.7]} 3... Nf6 {[%clk 0:04:51.8]}
4. Bg5 {[%clk 0:04:49]} 4... Bf5 {[%clk 0:04:50.9]} 5. h3 {[%clk 0:04:43.1]}
5... Nbd7 {[%clk 0:04:49.5]} 6. e3 {[%clk 0:04:33.6]} 6... Bg6 {[%clk
0:04:48.3]} 7. Bd3 {[%clk 0:04:30.7]} 7... Qb6 {[%clk 0:04:46.8]} 8. Rb1 {[%clk
0:04:28.2]} 8... Ne4 {[%clk 0:04:44.6]} 9. Nh4 {[%clk 0:04:24.3]} 9... Nxg5
{[%clk 0:04:40.3]} 10. Nxg6 {[%clk 0:04:14]} 10... hxg6 {[%clk 0:04:40.2]} 11.
h4 {[%clk 0:04:12]} 11... Ne6 {[%clk 0:04:38]} 12. f4 {[%clk 0:04:06.7]} 12...
Nf6 {[%clk 0:04:33.3]} 13. f5 {[%clk 0:04:04.4]} 13... gxf5 {[%clk 0:04:31.1]}
14. Bxf5 {[%clk 0:04:02]} 14... Nc7 {[%clk 0:04:28.9]} 15. a4 {[%clk 0:03:46.8]}
15... e6 {[%clk 0:04:24.1]} 16. Bd3 {[%clk 0:03:42.6]} 16... a5 {[%clk
0:04:20.4]} 17. Qf3 {[%clk 0:03:29.2]} 17... Bd6 {[%clk 0:04:18.3]} 18. g4
{[%clk 0:03:25.2]} 18... e5 {[%clk 0:04:10.4]} 19. Qg2 {[%clk 0:03:01.6]} 19...
exd4 {[%clk 0:04:07]} 20. exd4 {[%clk 0:02:59.7]} 20... Qxd4 {[%clk 0:04:06.9]}
21. g5 {[%clk 0:02:52.4]} 21... Nh5 {[%clk 0:04:04.2]} 22. Kd1 {[%clk
0:02:43.3]} 22... O-O-O {[%clk 0:04:02.6]} 23. Re1 {[%clk 0:02:34.7]} 23... Kb8
{[%clk 0:04:00.7]} 24. Ne2 {[%clk 0:02:29.5]} 24... Qxh4 {[%clk 0:03:58.4]} 25.
g6 {[%clk 0:02:01.7]} 25... f6 {[%clk 0:03:49.7]} 26. b4 {[%clk 0:01:53.5]}
26... Bxb4 {[%clk 0:03:45.5]} 27. c3 {[%clk 0:01:52.7]} 27... Nf4 {[%clk
0:03:37.9]} 28. Nxf4 {[%clk 0:01:41.9]} 28... Qxf4 {[%clk 0:03:37.8]} 29. cxb4
{[%clk 0:01:38.9]} 29... Rh2 {[%clk 0:03:24.5]} 30. Rf1 {[%clk 0:01:29.4]} 30...
Qh6 {[%clk 0:03:13.8]} 31. Rf2 {[%clk 0:01:16.6]} 31... Rxg2 {[%clk 0:03:08.5]}
32. Rxg2 {[%clk 0:01:16.1]} 32... Qh1+ {[%clk 0:03:07.7]} 33. Kc2 {[%clk
0:01:13.4]} 33... Qxg2+ {[%clk 0:03:05.2]} 34. Kb3 {[%clk 0:01:13.3]} 0-1

[Event "Live Chess"]
[Site "Chess.com"]
[Date "2024.06.01"]
[Round "-"]
[White "nigelst"]
[Black "lyricalschemes"]
[Result "0-1"]
[WhiteElo "1663"]
[BlackElo "2401"]
[TimeControl "300"]
[EndTime "14:31:03 PDT"]
[Termination "lyricalschemes won by resignation"]

1. e4 {[%clk 0:04:57.1]} 1... Nf6 {[%clk 0:04:58.9]} 2. e5 {[%clk 0:04:54.9]}
2... Nd5 {[%clk 0:04:58.6]} 3. d4 {[%clk 0:04:52.5]} 3... d6 {[%clk 0:04:58.2]}
4. exd6 {[%clk 0:04:47.4]} 4... cxd6 {[%clk 0:04:56.8]} 5. c4 {[%clk 0:04:46.4]}
5... Nb6 {[%clk 0:04:55.4]} 6. Nc3 {[%clk 0:04:44.8]} 6... g6 {[%clk 0:04:54.2]}
7. Be3 {[%clk 0:04:41]} 7... Bg7 {[%clk 0:04:53.6]} 8. Bd3 {[%clk 0:04:38.1]}
8... O-O {[%clk 0:04:52.5]} 9. Nge2 {[%clk 0:04:36.6]} 9... Nc6 {[%clk
0:04:51.7]} 10. O-O {[%clk 0:04:33.2]} 10... Nb4 {[%clk 0:04:49.1]} 11. a3
{[%clk 0:04:25.8]} 11... Nxd3 {[%clk 0:04:46]} 12. Qxd3 {[%clk 0:04:24.9]} 12...
Bf5 {[%clk 0:04:45.4]} 13. Qd2 {[%clk 0:04:23.7]} 13... Nxc4 {[%clk 0:04:44.4]}
14. Qc1 {[%clk 0:04:21.9]} 14... Rc8 {[%clk 0:04:43.3]} 15. b3 {[%clk 0:04:13]}
15... Nb6 {[%clk 0:04:39.1]} 16. a4 {[%clk 0:04:05.3]} 16... Bd3 {[%clk
0:04:36.8]} 17. a5 {[%clk 0:04:01.8]} 17... Bxe2 {[%clk 0:04:36]} 18. Nxe2
{[%clk 0:03:58.2]} 18... Rxc1 {[%clk 0:04:34]} 0-1